[Event "3rd Sharjah Challengers 2023"]
[Site "Sharjah"]
[Date "2023.05.25"]
[Round "9.3"]
[White "Sibashvili, Giorgi"]
[Black "Sivuk, Vitaly"]
[Result "1-0"]
[ECO "A30"]
[WhiteElo "2408"]
[BlackElo "2489"]
[Annotator "TA"]
[PlyCount "127"]
[EventDate "2023.05.16"]
[EventType "swiss"]
[EventCountry "UAE"]
[SourceTitle "playchess.com"]
[Source "ChessBase"]
[SourceQuality "1"]
[TimeControl "5400+30"]

{[%evp 9,127,0,8,9,10,-2,-11,-12,0,-2,12,-8,0,0,0,0,20,18,12,20,11,12,35,16,22,11,9,17,16,18,32,39,31,43,54,54,66,41,82,75,79,83,88,85,129,85,114,108,111,87,80,87,68,60,98,113,112,94,95,82,84,70,94,85,97,72,75,67,91,25,89,89,89,89,89,89,94,94,104,100,83,81,93,80,137,143,143,130,141,91,105,27,117,31,25,0,0,0,0,0,100,0,0,0,0,0,0,0,0,0,0,0,12845,12845,12846,12847,12847,12847,12848,12848]} 1. b3 {[%emt 0:00:02]} c5 {[%emt 0:01:55]} 2. Bb2 {[%emt 0:00:10]} Nc6 {[%emt 0:00:45]} 3. c4 {[%emt 0:00:33]} d6 {[%emt 0:01:51]} 4. g3 {[%emt 0:00:59]} e5 {[%emt 0:00:52]} 5. Bg2 {[%emt 0:00:16]} Nge7 {[%emt 0:00:21]} 6. Nc3 {[%emt 0:02:01] A30: Symmetrical English: Double Fianchetto and Hedgehog.} g6 {[%emt 0:00:27]} 7. Nf3 {[%emt 0:01:49]} Bg7 {[%emt 0:00:16]} 8. O-O {[%emt 0:00:33] The position is equal.} O-O {[%emt 0:00:24]} 9. d3 {[%emt 0:01:10]} h6 {[%emt 0:00:27]} 10. Nd2 {[%emt 0:18:32]} Be6 {[%emt 0:00:23]} 11. a3 {[%emt 0:02:31]} Qd7 {[%emt 0:09:06] 11...d5 might become the main line.} 12. Nd5 {[%emt 0:02:04]} Bh3 {[%emt 0:00:29]} 13. Bxh3 {[%emt 0:02:31]} Qxh3 {[%emt 0:00:07]} 14. b4 {[%emt 0:00:12]} Qd7 {[%emt 0:27:10]} 15. Qa4 {[%emt 0:10:01] [#]} Rfd8 $146 {[%emt 0:03:21]} ({Predecessor:} 15... Rae8 16. Qb5 a6 17. Qb6 cxb4 18. axb4 Nxd5 19. cxd5 Nd4 20. Bxd4 exd4 21. Ne4 Re7 {½-½ Kahl,F (2356)-Sorcinelli,A (2219) RA-2019-0-00645}) 16. Rfb1 {[%emt 0:06:41]} f5 {[%emt 0:03:06]} 17. Bc3 {[%emt 0:05:02]} Nd4 {[%emt 0:05:09]} 18. Qxd7 {[%emt 0:04:12]} Rxd7 {[%emt 0:00:09]} 19. Bxd4 {[%emt 0:03:12]} Nxd5 {[%emt 0:09:53]} 20. bxc5 {[%emt 0:06:13]} (20. cxd5 {simplifies} cxd4 21. a4 Rc8 22. Nc4) 20... dxc5 {[%emt 0:03:26]} 21. cxd5 {[%emt 0:00:51] [#] Bc3 would be deadly.} (21. Bxc5 Nc3 22. Re1 e4 $15) 21... exd4 {[%emt 0:04:29]} 22. Rb5 {[%emt 0:01:28]} Re8 {[%emt 0:03:34]} 23. Kf1 {[%emt 0:01:03]} Bf8 {[%emt 0:08:49]} 24. Nc4 {[%emt 0:01:30]} Rc8 {[%emt 0:08:36]} 25. Rab1 {[%emt 0:02:16]} Rcc7 {[%emt 0:00:12]} 26. a4 {[%emt 0:02:12]} g5 {[%emt 0:01:44]} 27. f4 {[%emt 0:00:54]} gxf4 {[%emt 0:03:27]} 28. gxf4 {[%emt 0:00:06]} b6 {[%emt 0:00:31]} 29. Kf2 {[%emt 0:02:21]} Rxd5 {[%emt 0:00:14]} 30. a5 {[%emt 0:00:08]} bxa5 {[%emt 0:00:28]} 31. Rxa5 {[%emt 0:00:20]} Rd8 {[%emt 0:01:02]} 32. Ra6 {[%emt 0:00:53][%mdl 1024] White has strong compensation.} Re8 {[%emt 0:00:23]} 33. Rf6 {[%emt 0:06:55]} Rce7 {[%emt 0:00:25]} 34. Rb2 {[%emt 0:00:38]} (34. Rxf5 $6 Rxe2+ 35. Kf3 Re1 36. Rxe1 Rxe1 $11) 34... Rf7 {[%emt 0:00:43]} 35. Rc6 {[%emt 0:01:51]} Rg7 {[%emt 0:00:37][%cal Oa7a5]} 36. Ne5 {[%emt 0:01:19]} (36. Rxh6 $6 Rg4 37. Rh5 Rxf4+ 38. Ke1 Kg7 $11) 36... Kh7 {[%emt 0:00:25]} 37. Rf6 {[%emt 0:01:32]} Ra8 {[%emt 0:01:15]} 38. Ra2 {[%emt 0:02:25][%cal Oa2a6]} a5 {[%emt 0:00:14]} 39. Nc4 {[%emt 0:01:04]} (39. Rxf5 a4 $14) (39. Ra4 $16) 39... Rga7 {[%emt 0:01:26]} (39... a4 $11) 40. Ra4 $16 {[%emt 0:00:43]} Ra6 {[%emt 0:01:27]} 41. Rxf5 {[%emt 0:00:36] White has more active pieces.} Kg7 {[%emt 0:00:08]} 42. Rd5 {[%emt 0:00:36]} R8a7 {[%emt 0:00:07]} 43. Kf3 {[%emt 0:00:59]} Rf6 {[%emt 0:01:04]} 44. f5 {[%emt 0:02:54]} (44. Rxa5 $6 Raf7 $11) 44... Rfa6 {[%emt 0:00:11]} 45. Rd8 {[%emt 0:03:51]} Be7 {[%emt 0:00:52]} 46. Rb8 {[%emt 0:00:59]} Bd6 {[%emt 0:00:50]} (46... Rf6 $142) 47. Rb5 {[%emt 0:01:14]} Bxh2 {[%emt 0:00:07]} 48. Rxc5 {[%emt 0:00:35]} Kf6 {[%emt 0:00:19]} 49. Rd5 {[%emt 0:02:01]} (49. Raxa5 $6 Rxa5 50. Nxa5 Rg7 $14) ({White should play} 49. Nd2) 49... Rg7 {[%emt 0:00:23]} 50. Rxd4 {[%emt 0:01:19]} ({Much less strong is} 50. Raxa5 Rg3+ 51. Kf2 Rxa5 52. Rxa5 Rg5 $14) (50. Ra1 $16 {[%cal Oa1h1] Hoping for Rh1!} Rg3+ 51. Kf2) 50... Kxf5 {[%emt 0:00:17] [#]} (50... Rg3+ $11 {remains equal.} 51. Kf2 Rg5) 51. Rd5+ {[%emt 0:00:23]} ({Don't take} 51. Nxa5 Rg3+ 52. Kf2 Kg5 $14) (51. Rh4 $1 $16 Bc7 52. e4+ Kg6 53. e5) 51... Kg6 $14 {[%emt 0:00:40]} 52. Raxa5 {[%emt 0:00:58]} Rf6+ {[%emt 0:00:07]} 53. Ke4 {[%emt 0:00:26]} Re7+ {[%emt 0:01:16]} 54. Ne5+ {[%emt 0:00:05]} Kg5 {[%emt 0:00:42]} (54... Bxe5 $11 55. Rxe5 Rxe5+ 56. Rxe5 Rf8) 55. d4 {[%emt 0:00:31]} ({Better is} 55. Kd4 $16 Bxe5+ 56. Rxe5+ Rxe5 57. Rxe5+ Kg4 58. Re8) 55... Rfe6 $11 {[%emt 0:00:21]} 56. Ra8 {[%emt 0:00:45] Rg8+ is the strong threat.} Bxe5 {[%emt 0:00:42]} 57. Rxe5+ {[%emt 0:00:16]} Rxe5+ {[%emt 0:00:04]} 58. dxe5 {[%emt 0:00:03][%cal Bd4e5,Be5e6,Be6e7][%mdl 4128] Endgame Threatens to win with Rg8+. KR-KR} Kg6 {[%emt 0:00:19]} 59. Kd5 {[%emt 0:00:54]} h5 {[%emt 0:01:12]} 60. e6 {[%emt 0:00:25]} Rb7 $2 {[%emt 0:00:26][%mdl 8192]} (60... Kf6 $11) 61. Kc6 $18 {[%emt 0:00:53] White is clearly winning.} Rb2 {[%emt 0:00:43]} 62. e7 {[%emt 0:00:21]} Rc2+ {[%emt 0:00:08]} 63. Kd5 {[%emt 0:00:22]} Rd2+ {[%emt 0:00:05]} 64. Kc4 {[%emt 0:00:10] Weighted Error Value: White=0.14 (very precise) /Black=0.15 (very precise)} 1-0

[Event "3rd Sharjah Challengers 2023"]
[Site "Sharjah"]
[Date "2023.05.25"]
[Round "9.4"]
[White "Nigmatov, Ortik"]
[Black "Bai, Adelard"]
[Result "1-0"]
[ECO "C58"]
[WhiteElo "2438"]
[BlackElo "2409"]
[Annotator "TA"]
[PlyCount "87"]
[EventDate "2023.05.16"]
[EventType "swiss"]
[EventCountry "UAE"]
[SourceTitle "playchess.com"]
[Source "ChessBase"]
[SourceQuality "1"]
[TimeControl "5400+30"]

{[%evp 14,87,35,29,32,18,43,60,43,20,64,57,56,76,88,61,92,87,109,106,96,100,107,95,120,120,122,111,141,141,152,150,162,149,162,128,124,127,119,105,115,113,132,145,123,144,198,196,202,196,186,194,187,183,190,193,185,175,170,173,302,307,315,291,272,242,261,223,262,226,818,864,737,631,29998,29999]} 1. e4 {[%emt 1:31:00]} e5 {[%emt 1:31:00]} 2. Nf3 {[%emt 0:00:30]} Nc6 {[%emt 0:00:30]} 3. Bc4 {[%emt 0:00:30]} Nf6 {[%emt 0:00:30][%cal Bg8f6,Bf6d5,Bd5f4][%mdl 32]} 4. Ng5 {[%emt 0:00:30]} d5 {[%emt 0:00:30]} 5. exd5 {[%emt 0:00:30]} Na5 {[%emt 0:00:30]} 6. Bb5+ {[%emt 0:00:30]} c6 {[%emt 0:00:30]} 7. dxc6 {[%emt 0:00:30]} bxc6 {[%emt 0:00:30]} 8. Bd3 {[%emt 0:00:30]} Nd5 {[%emt 0:00:30] C58: Two Knights: 4 Ng5 d5 5 exd5 Na5 sidelines.} 9. h4 {[%emt 0:00:30]} (9. Qh5 g6 10. Nxf7 gxh5 $17) 9... Nf4 {[%emt 0:00:30][%csl LRd3,LRg2]} 10. Bf1 {[%emt 0:00:30][%cal Od2d4]} h6 {[%emt 0:00:30] White is slightly better.} 11. Ne4 {[%emt 0:00:30][%cal Od2d4,Bg5e4,Be4d2,Bd2f3][%mdl 32]} Bf5 {[%emt 0:00:30]} 12. Nbc3 {[%emt 0:00:30][%cal Od2d4] [#]} Be7 $146 {[%emt 0:00:30] Against d4} ({Predecessor:} 12... Bb4 13. g3 Nd5 14. Bg2 Nc4 15. O-O O-O 16. d3 Nd6 17. Nxd6 Qxd6 18. Bd2 Nxc3 19. Bxc3 Bxc3 20. bxc3 {0-1 Sadhwani,R (2434)-Guimaraes,W (2240) Titled Tuesday intern op 4th Dec blitz 2018 (1)}) 13. g3 {[%emt 0:00:30]} Ne6 {[%emt 0:00:30]} 14. Bg2 {[%emt 0:00:30]} O-O {[%emt 0:00:30]} 15. d3 {[%emt 0:00:30]} Bh7 {[%emt 0:00:30]} 16. Nd2 {[%emt 0:00:30]} Qc7 {[%emt 0:00:30]} 17. O-O {[%emt 0:00:30]} Rad8 {[%emt 0:00:30]} 18. Rb1 {[%emt 0:00:30]} Nd4 {[%emt 0:00:30]} 19. b4 {[%emt 0:00:30]} Nb7 {[%emt 0:00:30]} 20. Nf3 {[%emt 0:00:30]} Nxc2 {[%emt 0:00:30][%mdl 64] Decoy} 21. Qxc2 {[%emt 0:00:30] Threatens to win with Ne1.} Bxd3 {[%emt 0:00:30] [#]} 22. Qb3 {[%emt 0:00:30][%cal Oc1e3]} e4 {[%emt 0:00:30][%cal Od3f1]} 23. Ne1 {[%emt 0:00:30]} (23. Bf4 $6 Bd6 $14) 23... Bxb1 {[%emt 0:00:30]} 24. Nxb1 {[%emt 0:00:30]} a5 {[%emt 0:00:30]} 25. bxa5 {[%emt 0:00:30]} Nxa5 {[%emt 0:00:30]} 26. Qa4 {[%emt 0:00:30]} f5 {[%emt 0:00:30]} 27. Nc2 {[%emt 0:00:30]} c5 {[%emt 0:00:30]} 28. Nc3 {[%emt 0:00:30] Ne3 is the strong threat.} Nc6 {[%emt 0:00:30]} 29. Qc4+ {[%emt 0:00:30]} Kh7 {[%emt 0:00:30]} (29... Kh8 $16 {was worth a try.}) 30. Bf4 $18 {[%emt 0:00:30]} Ne5 {[%emt 0:00:30]} 31. Qe6 {[%emt 0:00:30]} Bd6 {[%emt 0:00:30]} 32. Nb5 {[%emt 0:00:30]} Qf7 {[%emt 0:00:30]} 33. Qxf7 {[%emt 0:00:30]} Nxf7 {[%emt 0:00:30]} 34. Nxd6 {[%emt 0:00:30]} Nxd6 {[%emt 0:00:30]} 35. Rb1 {[%emt 0:00:30] Repels Nb5. Strongly threatening Ne3.} Nc4 {[%emt 0:00:30]} 36. Rb7 {[%emt 0:00:30]} Ra8 {[%emt 0:00:30]} (36... Kg8 $142 37. a4 Rd3) 37. Bf1 {[%emt 0:00:30]} Na5 {[%emt 0:00:30]} 38. Rb5 {[%emt 0:00:30]} Nc6 {[%emt 0:00:30]} 39. Bc4 {[%emt 0:00:30]} g5 {[%emt 0:00:30]} 40. Bc7 {[%emt 0:00:30]} ({But not} 40. hxg5 $6 hxg5 41. Bd6 (41. Bxg5 Ne5 $16) (41. Rxc5 gxf4 42. Rxc6 Rfc8 $14) 41... Rfd8 $18) (40. Rxc5 gxf4 41. Rxc6 Rfc8 $16) 40... Rfc8 {[%emt 0:00:30]} 41. Bd6 {[%emt 0:00:30] And now Ne3 would win. This pair of bishops is nice.} Nd4 $2 {[%emt 0:00:30]} (41... Rd8) 42. Rb7+ {[%emt 0:00:30]} (42. Rxc5 $2 {perishes.} Nf3+ 43. Kg2 Rxc5 44. Bxc5 Rc8 45. hxg5 hxg5 $19) 42... Kg6 {[%emt 0:00:30]} 43. Ne3 {[%emt 0:00:30][%cal Oh4h5] [#] Threatening mate with h5+!} f4 {[%emt 0:00:30]} 44. h5+ {[%emt 0:00:30][%mdl 64] Decoy. Artfully played by Nigmatov.   Weighted Error Value: White=0.09 (flawless) /Black=0.35} 1-0

[Event "3rd Sharjah Challengers 2023"]
[Site "Sharjah"]
[Date "2023.05.25"]
[Round "9.5"]
[White "Vandenbussche, Thibaut"]
[Black "Saydaliev, Saidakbar"]
[Result "0-1"]
[ECO "C48"]
[WhiteElo "2437"]
[BlackElo "2434"]
[Annotator "TA"]
[PlyCount "130"]
[EventDate "2023.05.16"]
[EventType "swiss"]
[EventCountry "UAE"]
[SourceTitle "playchess.com"]
[Source "ChessBase"]
[SourceQuality "1"]
[TimeControl "5400+30"]

{[%evp 9,130,14,18,10,34,-8,0,-9,12,14,26,0,0,-5,0,0,3,10,22,0,0,-43,-51,-51,-62,-60,-60,-62,0,-10,-17,-39,-43,-240,-234,-235,-233,-305,-93,-109,-102,-112,-133,-111,-31,-13,-33,-149,-157,-152,-134,-289,0,-287,-117,-101,-108,-109,-112,-106,-109,-189,0,-48,-36,-207,-194,-225,-114,-106,-129,-141,0,-232,0,-221,-245,-238,-199,-193,-231,-225,-232,-210,-197,-257,-151,-29959,-29960,-5618,-2143,-29974,-29975,-29975,-29976,-29976,-29977,-29977,-29978,-29978,-29979,-29979,-29980,-29979,-29980,-29981,-29980,-29980,-29981,-29983,-29984,-29984,-29982,-29984,-29984,-29984,-29985,-29985,-29986,-29986,-29987,-29985,-295]} 1. e4 {[%emt 0:00:02]} e5 {[%emt 0:01:45]} 2. Nf3 {[%emt 0:00:04]} Nc6 {[%emt 0:00:09]} 3. Nc3 {[%emt 0:00:11]} Nf6 {[%emt 0:00:24]} 4. Bb5 {[%emt 0:00:05]} Bd6 {[%emt 0:00:38]} 5. d3 {[%emt 0:00:42]} h6 {[%emt 0:00:12]} 6. a3 {[%emt 0:03:47] C48: Four Knights: 4 Bb5, replies other than 4...Bb4.} a6 {[%emt 0:00:07]} 7. Bxc6 {[%emt 0:04:57]} dxc6 {[%emt 0:09:40]} 8. h3 {[%emt 0:00:03] The position is equal.} c5 {[%emt 0:04:11]} 9. Be3 {[%emt 0:01:31]} Be6 {[%emt 0:00:41]} 10. Qd2 {[%emt 0:05:10] [#]} Nd7 $146 {[%emt 0:01:30]} ({Predecessor:} 10... O-O 11. O-O-O b5 12. a4 b4 13. Nd5 Nxd5 14. exd5 Bxd5 15. Rhg1 c4 16. d4 c3 17. bxc3 bxc3 18. Qxc3 {0-1 Ber,K-Kaaf,H Rangliste 1000-1300 22891 2021}) 11. Ne2 {[%emt 0:01:42]} Qe7 {[%emt 0:07:55]} 12. Ng3 {[%emt 0:00:07]} O-O-O {[%emt 0:01:37] [#]} 13. b4 $1 {[%emt 0:10:48]} g6 {[%emt 0:15:20][%cal Rc5b4]} (13... h5 14. Nh4) 14. bxc5 {[%emt 0:01:38]} Bxc5 {[%emt 0:00:55]} 15. Qc3 {[%emt 0:06:33]} Bd6 {[%emt 0:06:16]} 16. d4 {[%emt 0:08:27]} exd4 {[%emt 0:03:01]} 17. Bxd4 {[%emt 0:00:14]} Rhe8 {[%emt 0:02:58]} 18. O-O {[%emt 0:00:53]} f5 {[%emt 0:04:17]} (18... f6 $15) 19. exf5 {[%emt 0:03:40]} gxf5 {[%emt 0:01:52]} 20. Nh5 {[%emt 0:12:09]} Rg8 {[%emt 0:06:26]} 21. Rab1 $2 {[%emt 0:08:23]} (21. Nf6 $15) 21... Bd5 $19 {[%emt 0:01:57][%cal Og8g2] This pair of bishops is nice.} (21... Bxa3 22. Rfe1 Bd6 23. Ng7 (23. Qb2 b6 $16) 23... Rxg7 24. Bxg7 $16) 22. Rfd1 {[%emt 0:13:12]} Qf7 {[%emt 0:05:43]} ({And not} 22... Bxa3 23. Re1 Qf7 24. Nf4 $15) 23. Bg7 {[%emt 0:15:04]} Nc5 $2 {[%emt 0:12:35]} (23... f4 $19 24. Rxd5 Qxd5) 24. Rxd5 $17 {[%emt 0:02:16][%mdl 64] Decoy} Qxd5 {[%emt 0:00:01]} 25. Nf6 {[%emt 0:00:00]} Qa2 {[%emt 0:04:24]} 26. Ra1 {[%emt 0:01:00]} Qe6 {[%emt 0:04:09]} (26... Na4 $1 $17 {[%cal Ra4c3]} 27. Qd4 Qf7 28. Nxg8 Bh2+ {[%mdl 64] Discovered Attack} 29. Kxh2 Rxd4 30. Bxd4 Qxg8) 27. Nxg8 $15 {[%emt 0:01:22]} Rxg8 28. Qf6 {[%emt 0:00:00]} (28. Bd4 $15 Qd5 29. Re1) 28... Qd7 $1 $17 {[%emt 0:00:49]} 29. Bxh6 {[%emt 0:00:00]} Ne4 {[%emt 0:00:01]} 30. Qd4 {[%emt 0:00:44]} (30. Qb2 $17) 30... Qh7 $2 {[%emt 0:00:08]} (30... Qe6 $1 $19 {[%cal Re6h6]} 31. Qa7 Qg6) 31. Qa7 $2 {[%emt 0:00:37][%mdl 8192]} Kd7 {[%emt 0:01:36]} ({But not} 31... Qxh6 32. Qa8+ Kd7 33. Qxg8 $18) (31... Qg6 $19 {[%csl Gg8][%cal Rg6g2] and Black stays clearly on top.} 32. Nh4 Qf6) 32. Qe3 {[%emt 0:00:32]} Bc5 {[%emt 0:00:59] Black has more active pieces.} 33. Qb3 {[%emt 0:00:32]} Bxf2+ {[%emt 0:01:22]} 34. Kh1 {[%emt 0:00:01][%cal Ob3b7]} Kc8 $40 {[%emt 0:00:16][%cal Bd7c8,Bc8b8,Bb8a8,Ba8a7][%mdl 160] aiming for ...Qg6. Black is out for blood. The board is on fire.} 35. Rb1 {[%emt 0:00:21]} (35. Qe6+ $17 {might work better.} Kb8 36. Rb1) 35... Bb6 $2 {[%emt 0:00:20]} ({Better is} 35... Nc5 $1 $19 {[%cal Rc5b3]} 36. Qd5 Rd8) 36. Qe6+ {[%emt 0:00:09]} (36. Be3 $11) 36... Kb8 $15 {[%emt 0:00:03] Threatens to win with ...Rg6.} 37. Rxb6 $2 {[%emt 0:01:00]} (37. Ne5 $15) 37... cxb6 $19 {[%emt 0:00:06]} 38. Ne5 {[%emt 0:01:00]} Rd8 {[%emt 0:02:30] Prevents Nd7+.} (38... Ka7 $1 $19 {...Rd8 would be deadly.} 39. Be3 Nc5) 39. Bf4 {[%emt 0:00:32] Nc6+ would kill now.} Ka8 $1 {[%emt 0:01:56]} (39... Rd1+ $2 40. Kh2 Ka7 41. Nc4 $16) 40. Nc4 {[%emt 0:00:05]} Qh4 {[%emt 0:00:37]} ({Black should play} 40... Qg8 $1 $17 {[%cal Rg8e6]} 41. Qxg8 Rxg8 42. Nxb6+ Ka7) 41. Nxb6+ {[%emt 0:01:27]} Ka7 42. Nd5 $2 {[%emt 0:00:00] [#]} (42. Nd7 $1 $11 {and White has nothing to worry.}) 42... Rxd5 $1 {[%emt 0:00:10][%mdl 576] Remove Defender} 43. Be3+ {[%emt 0:00:25] [#]} Rc5 $1 {[%emt 0:00:01]} 44. Bxc5+ Nxc5 {[%emt 0:00:01]} 45. Qxf5 {[%emt 0:00:43]} Qd4 {[%emt 0:00:52] White must now prevent ...Qa1+.} 46. Kh2 {[%emt 0:00:45]} a5 $1 {[%emt 0:00:40][%cal Ba6a5,Ba5a4][%mdl 32]} 47. Qg5 {[%emt 0:00:35]} (47. Qf3 $142) 47... Qd6+ {[%emt 0:00:23]} (47... Qc3 $19 48. Qg3 Qxc2) 48. Qg3 {[%emt 0:00:22]} (48. g3 $17) 48... Qxg3+ $1 {[%emt 0:01:17]} 49. Kxg3 {[%emt 0:00:01] KN-KP} b5 $1 {[%emt 0:00:00] ( -> ...a4)} 50. h4 {[%emt 0:00:30]} a4 $1 {[%emt 0:02:03] Black mates.} 51. c3 {[%emt 0:00:29] [#]} Ne4+ $1 {[%emt 0:00:01]} 52. Kf3 {[%emt 0:00:28]} Nxc3 {[%emt 0:00:04] KN-K3P} 53. Ke3 {[%emt 0:01:04]} Nd5+ {[%emt 0:00:12]} 54. Kd2 {[%emt 0:00:34] [#]} Nf6 $1 {[%emt 0:00:09]} 55. Kc3 {[%emt 0:00:27]} Kb6 {[%emt 0:00:06]} 56. Kd4 {[%emt 0:00:13]} Kc6 {[%emt 0:00:14]} 57. g3 {[%emt 0:00:46]} Kd6 {[%emt 0:00:08]} 58. Kd3 {[%emt 0:00:15]} Kc5 {[%emt 0:00:08]} 59. Kc2 {[%emt 0:00:51]} Kc4 {[%emt 0:00:07]} 60. Kb2 {[%emt 0:00:20]} Kd3 {[%emt 0:00:08]} 61. Ka1 {[%emt 0:00:36]} Kc3 {[%emt 0:00:08]} 62. Ka2 {[%emt 0:00:04]} Kc2 {[%emt 0:00:04]} 63. h5 {[%emt 0:00:11]} Nxh5 {[%emt 0:00:01]} 64. g4 {[%emt 0:00:03]} Nf4 {[%emt 0:00:05]} 65. g5 {[%emt 0:00:04]} Ng6 {[%emt 0:00:02] Weighted Error Value: White=0.56/Black=0.35} 0-1

[Event "3rd Sharjah Challengers 2023"]
[Site "Sharjah"]
[Date "2023.05.25"]
[Round "9.6"]
[White "Begmuratov, Khumoyun"]
[Black "Rios, Cristhian Camilo"]
[Result "0-1"]
[ECO "B51"]
[WhiteElo "2387"]
[BlackElo "2469"]
[Annotator "TA"]
[PlyCount "116"]
[EventDate "2023.05.16"]
[EventType "swiss"]
[EventCountry "UAE"]
[SourceTitle "playchess.com"]
[Source "ChessBase"]
[SourceQuality "1"]
[TimeControl "5400+30"]

{[%evp 9,116,10,14,23,22,26,8,22,22,0,9,-11,7,2,7,7,14,15,17,22,77,53,129,133,123,135,127,46,53,41,53,23,27,0,0,0,0,0,0,0,0,-7,0,-69,-71,-69,-69,-69,-29,-31,-7,-86,-84,-87,-87,-101,-97,-96,-64,-116,-90,-97,-25,-100,-93,-109,-83,-115,-119,-125,-111,-153,-153,-225,-179,-162,-153,-164,-154,-156,-156,-159,-153,-142,-132,-235,-160,-1351,-1307,-1182,-1181,-1082,-1113,-2424,-1142,-29972,-29973,-29984,-29985,-29986,-29987,-29987,-29987,-29989,-29990,-29990,-29991,-29991,-29992]} 1. e4 {[%emt 0:00:03]} c5 {[%emt 0:00:11]} 2. Nf3 {[%emt 0:00:09]} d6 {[%emt 0:00:16]} 3. Bb5+ {[%emt 0:01:01]} Nd7 {[%emt 0:00:13]} 4. Ba4 {[%emt 0:00:06]} Ngf6 {[%emt 0:01:26]} 5. O-O {[%emt 0:00:11]} a6 {[%emt 0:00:30][%cal Ob7b5] [#] White must now prevent ...b5!} 6. c4 {[%emt 0:00:09] B51: Sicilian: Moscow Variation (3 Bb5+) without 3...Bd7.} e6 {[%emt 0:01:33]} 7. Nc3 {[%emt 0:00:09]} Be7 {[%emt 0:00:14]} 8. d4 {[%emt 0:02:40] The position is equal.} cxd4 {[%emt 0:00:52]} 9. Qxd4 {[%emt 0:00:02]} O-O {[%emt 0:00:18]} 10. Bxd7 {[%emt 0:16:29] [#]} Nxd7 $146 {[%emt 0:07:30]} ({Predecessor:} 10... Bxd7 11. e5 dxe5 12. Nxe5 Be8 13. Be3 Qc7 14. f4 Rd8 15. Qb6 Qc8 16. Rad1 Nd7 17. Nxd7 Bxd7 {0-1 Agmanov,Z (2402)-Can,E (2593) Abu Dhabi op 26th 2019 (5)}) 11. Rd1 {[%emt 0:00:10]} b6 {[%emt 0:11:22]} 12. e5 {[%emt 0:22:34]} dxe5 {[%emt 0:02:32]} 13. Nxe5 {[%emt 0:03:02]} Nxe5 {[%emt 0:01:46]} 14. Qxe5 {[%emt 0:01:00]} Bd7 {[%emt 0:03:32]} (14... Qe8 $11) 15. Qg3 {[%emt 0:14:15]} Ra7 {[%emt 0:18:11] [#]} ({Black should play} 15... f5 $14) 16. Bh6 $1 $16 {[%emt 0:10:18][%csl Gh6][%cal Rg3g7]} Bf6 {[%emt 0:00:26][%cal Be7f6,Bf6b2,Bb2d4][%mdl 32]} 17. Ne4 {[%emt 0:00:18]} Qe7 {[%emt 0:06:03]} (17... Bxb2 $2 18. Rab1 Kh8 19. Be3 (19. Rxb2 gxh6 20. Qf4 f6 $18)) 18. Be3 {[%emt 0:10:05]} (18. Rd6 $16) 18... Bxb2 $14 {[%emt 0:09:30]} 19. Bxb6 {[%emt 0:10:27]} Ba4 $1 {[%emt 0:04:29]} 20. Bc5 {[%emt 0:04:02]} (20. Rab1 $5 Rd7 21. Rxd7 Qxd7 22. Nc5 $14 (22. Rxb2 $2 Qd1#)) 20... Qc7 {[%emt 0:01:21] Chess con chili.} 21. Bxa7 {[%emt 0:01:06]} (21. Bd6 $5 {[%cal Rd6c7]} Bxd1 22. Bxc7 Bxa1 23. Be5 Bxe5 24. Qxe5 $11) 21... Qxa7 {[%emt 0:01:06]} 22. Rab1 {[%emt 0:02:23] Rd2 is the strong threat.} Bxd1 {[%emt 0:00:42]} 23. Rxd1 {[%emt 0:00:18]} Bd4 {[%emt 0:00:41]} 24. Qd6 {[%emt 0:00:43]} e5 {[%emt 0:01:44]} 25. Rb1 {[%emt 0:00:01] Prevents Qb7} Qa8 $40 {[%emt 0:01:31][%mdl 128] White needs to defend precisely.} 26. Ng5 {[%emt 0:01:05]} (26. h3 $11) 26... Qc8 $1 $15 {[%emt 0:02:38]} 27. Nf3 {[%emt 0:00:39]} Qxc4 {[%emt 0:05:32]} 28. Nxd4 {[%emt 0:00:05] Strongly threatening Nf5.} exd4 {[%emt 0:00:10][%mdl 4096] Endgame KQR-KQR} 29. h3 $1 {[%emt 0:00:53] Hoping for Rb8.} h6 {[%emt 0:01:14]} (29... Qxa2 $2 30. Rb8 h6 31. Qxf8+ $18) 30. Rd1 {[%emt 0:00:25]} (30. a3 $1 $11 {remains equal.}) 30... Qxa2 $17 {[%emt 0:03:08]} 31. Qxd4 {[%emt 0:00:07]} Qe6 {[%emt 0:01:41]} 32. Qa7 {[%emt 0:00:52]} Rc8 {[%emt 0:00:22]} 33. Ra1 {[%emt 0:00:27]} Qf6 {[%emt 0:01:47]} 34. Rd1 {[%emt 0:00:43]} (34. Rxa6 $15 Rc1+ 35. Kh2 Qe5+ 36. g3) 34... g5 {[%emt 0:00:32]} 35. Qd7 {[%emt 0:00:28]} Rb8 {[%emt 0:06:02]} (35... Rc2 $17 36. Qd8+ Qxd8 37. Rxd8+ Kg7) 36. Qc7 {[%emt 0:00:02]} (36. Qd6 $11 Rb6 37. Qxf6 Rxf6 38. g4) 36... Re8 {[%emt 0:00:11] White is now going downhill.} 37. Qd7 {[%emt 0:00:34]} Kf8 {[%emt 0:01:49]} 38. Qd3 {[%emt 0:00:53]} Kg7 {[%emt 0:00:31]} 39. Qg3 {[%emt 0:00:33]} Re4 {[%emt 0:00:41]} 40. f3 {[%emt 0:00:26]} Rd4 {[%emt 0:02:08]} 41. Re1 {[%emt 0:00:28]} (41. Rf1 $17) 41... Rf4 {[%emt 0:00:44]} 42. Qf2 {[%emt 0:00:33]} a5 {[%emt 0:00:38]} 43. Qc5 {[%emt 0:00:26] Inhibits Rc4.} Rf5 {[%emt 0:00:07]} 44. Qc4 {[%emt 0:00:37]} Qb6+ {[%emt 0:00:25]} 45. Kh1 {[%emt 0:00:17]} Qb4 {[%emt 0:00:37]} 46. Qc1 {[%emt 0:00:15]} Rc5 {[%emt 0:00:49] Black is more active.} 47. Qd1 {[%emt 0:00:52]} (47. Qa1+ $17 Kg6 48. Re4) 47... Qb2 {[%emt 0:00:27]} 48. Qd7 $2 {[%emt 0:00:36]} (48. Qa4 $17) 48... Rc1 $19 {[%emt 0:00:42]} 49. Rxc1 {[%emt 0:00:12]} Qxc1+ {[%emt 0:00:05] KQ-KQ} 50. Kh2 {[%emt 0:00:00]} Qf4+ {[%emt 0:00:17]} 51. Kh1 {[%emt 0:00:19]} a4 {[%emt 0:00:08] ( -> ...a3)} 52. Qa7 {[%emt 0:00:22]} Qb4 {[%emt 0:00:32] Black mates.} 53. Qe3 {[%emt 0:00:25]} Qb2 {[%emt 0:02:26]} 54. h4 {[%emt 0:00:55]} a3 {[%emt 0:00:23]} 55. hxg5 {[%emt 0:00:02]} h5 {[%emt 0:00:32]} 56. f4 {[%emt 0:00:51]} a2 {[%emt 0:00:06]} 57. Kh2 {[%emt 0:00:03]} a1=Q {[%emt 0:00:04]} 58. g6 {[%emt 0:00:12]} Qbc1 {[%emt 0:00:28] Weighted Error Value: White=0.42/Black=0.11 (very precise)} 0-1